[Event "Late-Titled-Tuesday-Blitz-May-28-2024"]
[Site "Chess.com"]
[Date "2024.05.28"]
[Round "8"]
[White "MrEscacs"]
[Black "JohnWhite1952"]
[Result "1-0"]
[WhiteElo "2190"]
[BlackElo "2008"]
[TimeControl "180+1"]
[EndTime "15:29:28 PDT"]
[Termination "MrEscacs won on time"]

1. e4 {[%clk 0:02:43.2]} 1... e6 {[%clk 0:02:58.8]} 2. d4 {[%clk 0:02:42.9]}
2... d5 {[%clk 0:02:59.5]} 3. e5 {[%clk 0:02:43.3]} 3... c5 {[%clk 0:02:59.3]}
4. c3 {[%clk 0:02:43.6]} 4... Nc6 {[%clk 0:02:59.4]} 5. Nf3 {[%clk 0:02:42.7]}
5... Qb6 {[%clk 0:02:59.8]} 6. a3 {[%clk 0:02:42.3]} 6... Bd7 {[%clk 0:02:56.1]}
7. b4 {[%clk 0:02:40.6]} 7... cxd4 {[%clk 0:02:55.8]} 8. cxd4 {[%clk 0:02:41]}
8... a5 {[%clk 0:02:52.3]} 9. b5 {[%clk 0:02:38.9]} 9... Na7 {[%clk 0:02:51.1]}
10. a4 {[%clk 0:02:37.8]} 10... Bb4+ {[%clk 0:02:49.2]} 11. Bd2 {[%clk
0:02:31.1]} 11... Bxd2+ {[%clk 0:02:41.7]} 12. Qxd2 {[%clk 0:02:31]} 12... Ne7
{[%clk 0:02:39.9]} 13. Bd3 {[%clk 0:02:30]} 13... Rc8 {[%clk 0:02:26.4]} 14. O-O
{[%clk 0:02:28.8]} 14... h6 {[%clk 0:02:21.9]} 15. Nc3 {[%clk 0:02:18.4]} 15...
O-O {[%clk 0:02:16.7]} 16. Rac1 {[%clk 0:02:09.2]} 16... Rc7 {[%clk 0:02:01.9]}
17. Rc2 {[%clk 0:01:51.8]} 17... Rfc8 {[%clk 0:02:01.1]} 18. Rfc1 {[%clk
0:01:51]} 18... Be8 {[%clk 0:01:36.7]} 19. h4 {[%clk 0:01:14.6]} 19... Rd8
{[%clk 0:01:30.7]} 20. h5 {[%clk 0:01:11.2]} 20... Rcd7 {[%clk 0:01:28.2]} 21.
Ne2 {[%clk 0:01:05.7]} 21... Nf5 {[%clk 0:01:25.7]} 22. g4 {[%clk 0:00:58.3]}
22... Ne7 {[%clk 0:01:22.1]} 23. Nf4 {[%clk 0:00:52]} 23... Rc8 {[%clk
0:01:17.4]} 24. g5 {[%clk 0:00:43.4]} 24... hxg5 {[%clk 0:01:12.1]} 25. Nxg5
{[%clk 0:00:43.4]} 25... Rxc2 {[%clk 0:01:08.2]} 26. Bxc2 {[%clk 0:00:34.4]}
26... Nf5 {[%clk 0:01:00.1]} 27. Bxf5 {[%clk 0:00:23.2]} 27... exf5 {[%clk
0:00:59.9]} 28. e6 {[%clk 0:00:22.5]} 28... fxe6 {[%clk 0:00:55.1]} 29. Ngxe6
{[%clk 0:00:22.8]} 29... Re7 {[%clk 0:00:49.2]} 30. Qd3 {[%clk 0:00:16.4]} 30...
Rxe6 {[%clk 0:00:45.1]} 31. Nxe6 {[%clk 0:00:16.2]} 31... Qxe6 {[%clk
0:00:44.9]} 32. Rc2 {[%clk 0:00:14.9]} 32... Bxh5 {[%clk 0:00:41.9]} 33. Rc7
{[%clk 0:00:13.1]} 33... Qg6+ {[%clk 0:00:37.5]} 34. Kh2 {[%clk 0:00:12.4]}
34... Qd6+ {[%clk 0:00:33.2]} 35. Qg3 {[%clk 0:00:12.6]} 35... Qxg3+ {[%clk
0:00:24.2]} 36. Kxg3 {[%clk 0:00:12.7]} 36... Kh7 {[%clk 0:00:16.3]} 37. Kf4
{[%clk 0:00:13.1]} 37... Bg6 {[%clk 0:00:14.8]} 38. Ke5 {[%clk 0:00:13.3]} 38...
Kh6 {[%clk 0:00:09.6]} 39. f4 {[%clk 0:00:13.5]} 39... Kh5 {[%clk 0:00:09]} 40.
Rxb7 {[%clk 0:00:10.9]} 40... Nc8 {[%clk 0:00:08.8]} 41. Rc7 {[%clk 0:00:11]}
41... Nb6 {[%clk 0:00:07.7]} 42. Rc6 {[%clk 0:00:09.4]} 42... Nxa4 {[%clk
0:00:07.2]} 43. b6 {[%clk 0:00:10]} 43... Nxb6 {[%clk 0:00:04.6]} 44. Rxb6
{[%clk 0:00:10.4]} 44... Be8 {[%clk 0:00:03.7]} 45. Ra6 {[%clk 0:00:08.6]} 45...
a4 {[%clk 0:00:03.6]} 46. Kxd5 {[%clk 0:00:09.1]} 46... Bf7+ {[%clk 0:00:02.3]}
47. Ke5 {[%clk 0:00:09.3]} 47... Be8 {[%clk 0:00:02.1]} 48. d5 {[%clk
0:00:09.7]} 48... Kg4 {[%clk 0:00:01.8]} 49. d6 {[%clk 0:00:09.8]} 49... g5
{[%clk 0:00:01.5]} 50. fxg5 {[%clk 0:00:10]} 50... Kxg5 {[%clk 0:00:01.7]} 51.
Ra8 {[%clk 0:00:09.9]} 51... Bc6 {[%clk 0:00:01.3]} 52. Rg8+ {[%clk 0:00:08.8]}
1-0

[Event "Late-Titled-Tuesday-Blitz-May-28-2024"]
[Site "Chess.com"]
[Date "2024.05.28"]
[Round "8"]
[White "MaiqMaster"]
[Black "Oleg_Papayan"]
[Result "1/2-1/2"]
[WhiteElo "2474"]
[BlackElo "2606"]
[TimeControl "180+1"]
[EndTime "15:29:33 PDT"]
[Termination "Game drawn by repetition"]

1. e4 {[%clk 0:03:00.9]} 1... d5 {[%clk 0:02:59.7]} 2. exd5 {[%clk 0:03:00.4]}
2... Qxd5 {[%clk 0:03:00.6]} 3. Nc3 {[%clk 0:02:58.8]} 3... Qd8 {[%clk
0:03:01.5]} 4. d4 {[%clk 0:02:56.4]} 4... c6 {[%clk 0:03:02.4]} 5. Nf3 {[%clk
0:02:54.6]} 5... Bf5 {[%clk 0:03:02.9]} 6. Bc4 {[%clk 0:02:54]} 6... e6 {[%clk
0:03:03.4]} 7. Be3 {[%clk 0:02:51.9]} 7... Be7 {[%clk 0:03:03.5]} 8. Qd2 {[%clk
0:02:49.2]} 8... Nf6 {[%clk 0:03:03.7]} 9. O-O {[%clk 0:02:44.6]} 9... O-O
{[%clk 0:03:02.5]} 10. Ne5 {[%clk 0:02:43.9]} 10... Nbd7 {[%clk 0:03:01.7]} 11.
Rad1 {[%clk 0:02:34.5]} 11... Bb4 {[%clk 0:02:56.4]} 12. Qe2 {[%clk 0:02:13]}
12... Qa5 {[%clk 0:02:42.5]} 13. Nxd7 {[%clk 0:01:51]} 13... Nxd7 {[%clk
0:02:41.5]} 14. Nb1 {[%clk 0:01:43]} 14... Nf6 {[%clk 0:02:14.6]} 15. c3 {[%clk
0:01:40.1]} 15... Bd6 {[%clk 0:02:13.9]} 16. a3 {[%clk 0:01:33.7]} 16... Qc7
{[%clk 0:02:03.5]} 17. h3 {[%clk 0:01:30.9]} 17... Nd5 {[%clk 0:01:58.4]} 18.
Nd2 {[%clk 0:01:25.1]} 18... b5 {[%clk 0:01:48.3]} 19. Bd3 {[%clk 0:01:19.4]}
19... Bg6 {[%clk 0:01:31]} 20. Ne4 {[%clk 0:01:11.2]} 20... Nf4 {[%clk
0:01:25.8]} 21. Bxf4 {[%clk 0:01:05.9]} 21... Bxf4 {[%clk 0:01:26.7]} 22. g3
{[%clk 0:01:03.6]} 22... Bd6 {[%clk 0:01:20.2]} 23. Nxd6 {[%clk 0:01:03.6]}
23... Qxd6 {[%clk 0:01:20.7]} 24. Bxg6 {[%clk 0:01:03.5]} 24... hxg6 {[%clk
0:01:21.6]} 25. Qe5 {[%clk 0:00:59.3]} 25... Rfd8 {[%clk 0:01:19.6]} 26. f4
{[%clk 0:00:53.8]} 26... a5 {[%clk 0:01:16.9]} 27. Kf2 {[%clk 0:00:44.4]} 27...
b4 {[%clk 0:01:10.3]} 28. Qxd6 {[%clk 0:00:44.4]} 28... Rxd6 {[%clk 0:01:10.2]}
29. axb4 {[%clk 0:00:43.4]} 29... axb4 {[%clk 0:01:11.1]} 30. cxb4 {[%clk
0:00:44]} 30... Rb8 {[%clk 0:01:05.8]} 31. Rd2 {[%clk 0:00:43]} 31... Rxb4
{[%clk 0:01:06]} 32. Ke3 {[%clk 0:00:41.8]} 32... Rb3+ {[%clk 0:01:03.8]} 33.
Rd3 {[%clk 0:00:24.9]} 33... Rxb2 {[%clk 0:01:02.8]} 34. Rc1 {[%clk 0:00:23.4]}
34... Rh2 {[%clk 0:00:53.2]} 35. h4 {[%clk 0:00:23]} 35... Rg2 {[%clk 0:00:52]}
36. Kf3 {[%clk 0:00:22.7]} 36... Rb2 {[%clk 0:00:51.5]} 37. Ke3 {[%clk 0:00:17]}
37... Rb4 {[%clk 0:00:50.6]} 38. g4 {[%clk 0:00:13.1]} 38... f6 {[%clk
0:00:47.4]} 39. Ra1 {[%clk 0:00:13]} 39... Kh7 {[%clk 0:00:40.6]} 40. Ra7 {[%clk
0:00:12.3]} 40... Rb5 {[%clk 0:00:40.3]} 41. Rc3 {[%clk 0:00:11.7]} 41... Rb4
{[%clk 0:00:37.9]} 42. Rd3 {[%clk 0:00:12]} 42... Rb1 {[%clk 0:00:25.3]} 43. Rc3
{[%clk 0:00:09.9]} 43... Rh1 {[%clk 0:00:25.1]} 44. g5 {[%clk 0:00:05.2]} 44...
Rh3+ {[%clk 0:00:21.7]} 45. Kd2 {[%clk 0:00:03.8]} 45... Rxd4+ {[%clk
0:00:21.3]} 46. Kc2 {[%clk 0:00:04.1]} 46... Rxc3+ {[%clk 0:00:16.2]} 47. Kxc3
{[%clk 0:00:05]} 47... Rxf4 {[%clk 0:00:16.5]} 48. Rc7 {[%clk 0:00:05.5]} 48...
Kg8 {[%clk 0:00:12.6]} 49. Rc8+ {[%clk 0:00:05.6]} 49... Kh7 {[%clk 0:00:12]}
50. Rc7 {[%clk 0:00:05.8]} 50... e5 {[%clk 0:00:09.3]} 51. gxf6 {[%clk
0:00:04.5]} 51... Rxf6 {[%clk 0:00:09.3]} 52. Kd3 {[%clk 0:00:04.5]} 52... Rf4
{[%clk 0:00:07.9]} 53. Rxc6 {[%clk 0:00:04.2]} 53... Rxh4 {[%clk 0:00:08.2]} 54.
Ke3 {[%clk 0:00:04.8]} 54... Kh6 {[%clk 0:00:07.7]} 55. Re6 {[%clk 0:00:05.1]}
55... e4 {[%clk 0:00:06.7]} 56. Kf2 {[%clk 0:00:04.9]} 56... Kh5 {[%clk
0:00:04.8]} 57. Kg3 {[%clk 0:00:05.4]} 57... g5 {[%clk 0:00:04.4]} 58. Re8
{[%clk 0:00:05.3]} 58... Rf4 {[%clk 0:00:04.4]} 59. Rh8+ {[%clk 0:00:04.5]}
59... Kg6 {[%clk 0:00:05]} 60. Re8 {[%clk 0:00:05.4]} 60... Rf3+ {[%clk
0:00:04.9]} 61. Kg4 {[%clk 0:00:05.5]} 61... Rf4+ {[%clk 0:00:05.5]} 62. Kg3
{[%clk 0:00:06]} 62... Kf5 {[%clk 0:00:06]} 63. Rf8+ {[%clk 0:00:06.1]} 63...
Kg6 {[%clk 0:00:06.5]} 64. Re8 {[%clk 0:00:06.6]} 1/2-1/2

[Event "Late-Titled-Tuesday-Blitz-May-28-2024"]
[Site "Chess.com"]
[Date "2024.05.28"]
[Round "8"]
[White "Rodalquilar"]
[Black "Slovak_fighter2000"]
[Result "0-1"]
[WhiteElo "2782"]
[BlackElo "2565"]
[TimeControl "180+1"]
[EndTime "15:29:43 PDT"]
[Termination "Slovak_fighter2000 won on time"]

1. d4 {[%clk 0:03:00.9]} 1... Nf6 {[%clk 0:03:00]} 2. Nf3 {[%clk 0:03:01.3]}
2... g6 {[%clk 0:02:59.8]} 3. Bf4 {[%clk 0:03:01.6]} 3... Bg7 {[%clk 0:03:00.4]}
4. e3 {[%clk 0:03:02.1]} 4... O-O {[%clk 0:03:00.5]} 5. Be2 {[%clk 0:03:02.6]}
5... d6 {[%clk 0:03:01]} 6. O-O {[%clk 0:03:03]} 6... b6 {[%clk 0:03:01.5]} 7.
h3 {[%clk 0:03:03.4]} 7... Bb7 {[%clk 0:03:02]} 8. Bh2 {[%clk 0:03:03.8]} 8...
Nbd7 {[%clk 0:03:02.5]} 9. a4 {[%clk 0:03:04.3]} 9... a6 {[%clk 0:03:02.4]} 10.
Nbd2 {[%clk 0:03:04.8]} 10... c5 {[%clk 0:03:02.7]} 11. c3 {[%clk 0:03:05]}
11... Ne4 {[%clk 0:03:03.2]} 12. Nxe4 {[%clk 0:03:04.2]} 12... Bxe4 {[%clk
0:03:04.1]} 13. Nd2 {[%clk 0:03:04.8]} 13... Bb7 {[%clk 0:03:03.9]} 14. Bf3
{[%clk 0:03:05]} 14... Qc8 {[%clk 0:03:04.5]} 15. Qb3 {[%clk 0:03:04.6]} 15...
Bxf3 {[%clk 0:03:00.9]} 16. Nxf3 {[%clk 0:03:05]} 16... Qb7 {[%clk 0:03:01.3]}
17. Rfd1 {[%clk 0:03:05.1]} 17... b5 {[%clk 0:02:58.2]} 18. axb5 {[%clk
0:02:55]} 18... axb5 {[%clk 0:02:59.1]} 19. dxc5 {[%clk 0:02:54.9]} 19... Nxc5
{[%clk 0:02:56.7]} 20. Qb4 {[%clk 0:02:53.9]} 20... Ra4 {[%clk 0:02:47.7]} 21.
Rxa4 {[%clk 0:02:53.4]} 21... bxa4 {[%clk 0:02:48.6]} 22. Qxb7 {[%clk
0:02:45.8]} 22... Nxb7 {[%clk 0:02:49.5]} 23. Nd4 {[%clk 0:02:46.2]} 23... Nc5
{[%clk 0:02:42.4]} 24. Nc6 {[%clk 0:02:46.5]} 24... Bf6 {[%clk 0:02:37.6]} 25.
Kf1 {[%clk 0:02:39.7]} 25... Rc8 {[%clk 0:02:38]} 26. Nb4 {[%clk 0:02:40]} 26...
Ra8 {[%clk 0:02:14]} 27. Nd5 {[%clk 0:02:30]} 27... a3 {[%clk 0:01:47.1]} 28.
Nxf6+ {[%clk 0:02:16.8]} 28... exf6 {[%clk 0:01:48]} 29. bxa3 {[%clk 0:02:17.4]}
29... Rxa3 {[%clk 0:01:46.2]} 30. Bxd6 {[%clk 0:02:17.7]} 30... Rxc3 {[%clk
0:01:45.3]} 31. Be7 {[%clk 0:02:18.2]} 31... Kg7 {[%clk 0:01:37.7]} 32. g4
{[%clk 0:01:59.5]} 32... Ne4 {[%clk 0:01:19.1]} 33. Rd8 {[%clk 0:01:58.3]} 33...
g5 {[%clk 0:01:08.9]} 34. Bf8+ {[%clk 0:01:48]} 34... Kg6 {[%clk 0:01:08.7]} 35.
Bb4 {[%clk 0:01:45.8]} 35... Rc1+ {[%clk 0:01:04.3]} 36. Ke2 {[%clk 0:01:37.8]}
36... f5 {[%clk 0:00:54]} 37. f3 {[%clk 0:01:33.6]} 37... Nc3+ {[%clk
0:00:42.9]} 38. Bxc3 {[%clk 0:00:10.3]} 38... Rxc3 {[%clk 0:00:43.5]} 39. Rg8+
{[%clk 0:00:04]} 39... Kf6 {[%clk 0:00:43]} 40. Rh8 {[%clk 0:00:03.7]} 40... Kg7
{[%clk 0:00:38.6]} 41. Rd8 {[%clk 0:00:03.8]} 41... fxg4 {[%clk 0:00:35.1]} 42.
hxg4 {[%clk 0:00:04.7]} 42... f6 {[%clk 0:00:32.7]} 43. Kd2 {[%clk 0:00:03.9]}
43... Ra3 {[%clk 0:00:31.8]} 44. Rc8 {[%clk 0:00:03.9]} 44... Kg6 {[%clk
0:00:29.9]} 45. Ke2 {[%clk 0:00:04.3]} 45... h5 {[%clk 0:00:26.1]} 46. gxh5+
{[%clk 0:00:03]} 46... Kxh5 {[%clk 0:00:26.2]} 47. Rg8 {[%clk 0:00:03.7]} 47...
Kh6 {[%clk 0:00:25.7]} 48. e4 {[%clk 0:00:02.3]} 48... Kh7 {[%clk 0:00:24.6]}
49. Rd8 {[%clk 0:00:02.5]} 49... Kg6 {[%clk 0:00:24.7]} 50. Rd6 {[%clk 0:00:03]}
50... Kf7 {[%clk 0:00:23.4]} 51. Rb6 {[%clk 0:00:03.4]} 51... Ra2+ {[%clk
0:00:21]} 52. Ke3 {[%clk 0:00:03.7]} 52... Ra5 {[%clk 0:00:21.5]} 53. Kf2 {[%clk
0:00:03.9]} 53... Re5 {[%clk 0:00:21.3]} 54. Kg3 {[%clk 0:00:04.4]} 54... Re6
{[%clk 0:00:21.6]} 55. Rb7+ {[%clk 0:00:04.2]} 55... Kg6 {[%clk 0:00:22.1]} 56.
Kg4 {[%clk 0:00:04.9]} 56... Ra6 {[%clk 0:00:21.3]} 57. Rb5 {[%clk 0:00:05]}
57... Ra4 {[%clk 0:00:21.2]} 58. Rb6 {[%clk 0:00:05.1]} 58... Rc4 {[%clk
0:00:18.6]} 59. Kg3 {[%clk 0:00:04.6]} 59... Rc1 {[%clk 0:00:17.4]} 60. e5
{[%clk 0:00:04.6]} 60... Kf5 {[%clk 0:00:13.5]} 61. exf6 {[%clk 0:00:04.1]}
61... Rc7 {[%clk 0:00:12.6]} 62. Kf2 {[%clk 0:00:02.5]} 62... Rf7 {[%clk
0:00:12.2]} 63. Kg3 {[%clk 0:00:03.2]} 63... Rxf6 {[%clk 0:00:12.6]} 64. Rb5+
{[%clk 0:00:03.8]} 64... Kg6 {[%clk 0:00:12.9]} 65. Kg4 {[%clk 0:00:04.7]} 65...
Rf4+ {[%clk 0:00:12.8]} 66. Kg3 {[%clk 0:00:05.3]} 66... Rf5 {[%clk 0:00:13.7]}
67. Rc5 {[%clk 0:00:05.9]} 67... Rxc5 {[%clk 0:00:13.6]} 0-1

[Event "Late-Titled-Tuesday-Blitz-May-28-2024"]
[Site "Chess.com"]
[Date "2024.05.28"]
[Round "8"]
[White "WilsonPalencia21"]
[Black "Quattroporte300"]
[Result "0-1"]
[WhiteElo "2570"]
[BlackElo "2417"]
[TimeControl "180+1"]
[EndTime "15:29:43 PDT"]
[Termination "Quattroporte300 won by checkmate"]

1. d4 {[%clk 0:03:00.9]} 1... Nf6 {[%clk 0:02:56.7]} 2. c4 {[%clk 0:02:58.2]}
2... g6 {[%clk 0:02:56.8]} 3. Nf3 {[%clk 0:02:59.1]} 3... Bg7 {[%clk 0:02:55.8]}
4. Nc3 {[%clk 0:03:00]} 4... O-O {[%clk 0:02:53.9]} 5. e4 {[%clk 0:03:00.1]}
5... d6 {[%clk 0:02:54.5]} 6. Be2 {[%clk 0:03:00.2]} 6... Nbd7 {[%clk
0:02:54.9]} 7. Qc2 {[%clk 0:02:57.9]} 7... e5 {[%clk 0:02:54.7]} 8. d5 {[%clk
0:02:58.2]} 8... a5 {[%clk 0:02:51.7]} 9. Bg5 {[%clk 0:02:58.6]} 9... h6 {[%clk
0:02:51.3]} 10. Be3 {[%clk 0:02:58.5]} 10... Nc5 {[%clk 0:02:48.5]} 11. Nd2
{[%clk 0:02:56.9]} 11... Kh7 {[%clk 0:02:44.9]} 12. h3 {[%clk 0:02:56.4]} 12...
Nfd7 {[%clk 0:02:29.2]} 13. g4 {[%clk 0:02:45.8]} 13... Nb6 {[%clk 0:02:28]} 14.
h4 {[%clk 0:02:42.7]} 14... a4 {[%clk 0:02:22.9]} 15. Nf1 {[%clk 0:02:32.3]}
15... f5 {[%clk 0:02:06.4]} 16. h5 {[%clk 0:02:30.3]} 16... f4 {[%clk
0:02:01.3]} 17. hxg6+ {[%clk 0:02:29.7]} 17... Kxg6 {[%clk 0:01:57]} 18. Bxc5
{[%clk 0:02:22.8]} 18... dxc5 {[%clk 0:01:56]} 19. Nd2 {[%clk 0:02:21.1]} 19...
Bf6 {[%clk 0:01:43]} 20. O-O-O {[%clk 0:02:17.9]} 20... Bg5 {[%clk 0:01:39]} 21.
Bf3 {[%clk 0:02:14.6]} 21... Bd7 {[%clk 0:01:31.7]} 22. Kb1 {[%clk 0:02:14.4]}
22... Qe7 {[%clk 0:01:29.4]} 23. Qd3 {[%clk 0:02:06.7]} 23... Nc8 {[%clk
0:01:27.4]} 24. Rh5 {[%clk 0:01:54.4]} 24... Nd6 {[%clk 0:01:27]} 25. Rdh1
{[%clk 0:01:50.5]} 25... Rh8 {[%clk 0:01:22.9]} 26. Be2 {[%clk 0:01:46.4]} 26...
Kg7 {[%clk 0:01:15.1]} 27. Qh3 {[%clk 0:01:24.4]} 27... Be8 {[%clk 0:01:11.3]}
28. Rxg5+ {[%clk 0:01:20.4]} 28... Qxg5 {[%clk 0:01:10.9]} 29. Nf3 {[%clk
0:01:20.6]} 29... Qe7 {[%clk 0:00:35.9]} 30. g5 {[%clk 0:01:20.4]} 30... h5
{[%clk 0:00:35.7]} 31. Qg2 {[%clk 0:01:19.2]} 31... Bg6 {[%clk 0:00:35.9]} 32.
Nh4 {[%clk 0:01:18.6]} 32... Qf7 {[%clk 0:00:27.4]} 33. Bf3 {[%clk 0:01:17.2]}
33... b6 {[%clk 0:00:26.7]} 34. Qf1 {[%clk 0:01:15.9]} 34... Qe7 {[%clk
0:00:24.5]} 35. Rg1 {[%clk 0:01:15.8]} 35... Qf7 {[%clk 0:00:24.1]} 36. Kc2
{[%clk 0:01:15.6]} 36... Ra5 {[%clk 0:00:19.2]} 37. Qh3 {[%clk 0:01:10.7]} 37...
Nxc4 {[%clk 0:00:13.3]} 38. Nf5+ {[%clk 0:01:10.4]} 38... Kf8 {[%clk 0:00:11.6]}
39. Nh6 {[%clk 0:01:10]} 39... Qe8 {[%clk 0:00:07.9]} 40. Rh1 {[%clk 0:01:01.7]}
40... Nd6 {[%clk 0:00:07.8]} 41. Bxh5 {[%clk 0:01:01.8]} 41... Bxh5 {[%clk
0:00:06.3]} 42. Qxh5 {[%clk 0:00:59.2]} 42... Qxh5 {[%clk 0:00:06.6]} 43. Rxh5
{[%clk 0:01:00.1]} 43... Kg7 {[%clk 0:00:06.6]} 44. Nf5+ {[%clk 0:00:50.4]}
44... Nxf5 {[%clk 0:00:06.3]} 45. Rxh8 {[%clk 0:00:50.7]} 45... Nd4+ {[%clk
0:00:06.1]} 46. Kd3 {[%clk 0:00:07.2]} 46... Kxh8 {[%clk 0:00:07]} 47. Kc4
{[%clk 0:00:07.5]} 47... Kg7 {[%clk 0:00:06.4]} 48. d6 {[%clk 0:00:04.3]} 48...
cxd6 {[%clk 0:00:06]} 49. Kd5 {[%clk 0:00:04.9]} 49... Kg6 {[%clk 0:00:04.5]}
50. Kxd6 {[%clk 0:00:05.1]} 50... Kxg5 {[%clk 0:00:05.2]} 51. Kxe5 {[%clk
0:00:05.7]} 51... Nf3+ {[%clk 0:00:05]} 52. Kd5 {[%clk 0:00:06.2]} 52... Ra8
{[%clk 0:00:03.6]} 53. Kc6 {[%clk 0:00:06.3]} 53... Rd8 {[%clk 0:00:03.4]} 54.
Kxb6 {[%clk 0:00:06.9]} 54... Rd2 {[%clk 0:00:03.9]} 55. Nxa4 {[%clk 0:00:07.4]}
55... Rxf2 {[%clk 0:00:03.9]} 56. Kxc5 {[%clk 0:00:07.8]} 56... Rc2+ {[%clk
0:00:03.4]} 57. Kd5 {[%clk 0:00:07.1]} 57... Rd2+ {[%clk 0:00:03.6]} 58. Kc4
{[%clk 0:00:07.1]} 58... Ne5+ {[%clk 0:00:03.8]} 59. Kc3 {[%clk 0:00:07.2]}
59... Rd3+ {[%clk 0:00:04.4]} 60. Kc2 {[%clk 0:00:07.8]} 60... f3 {[%clk
0:00:05]} 61. b4 {[%clk 0:00:02.8]} 61... f2 {[%clk 0:00:05]} 62. b5 {[%clk
0:00:03.7]} 62... f1=Q {[%clk 0:00:05.3]} 63. b6 {[%clk 0:00:04.6]} 63... Qd1+
{[%clk 0:00:05.7]} 64. Kb2 {[%clk 0:00:04.9]} 64... Qxa4 {[%clk 0:00:05.8]} 65.
b7 {[%clk 0:00:04.9]} 65... Nc4+ {[%clk 0:00:05.9]} 66. Kb1 {[%clk 0:00:05.1]}
66... Rd1# {[%clk 0:00:06.1]} 0-1

[Event "Late-Titled-Tuesday-Blitz-May-28-2024"]
[Site "Chess.com"]
[Date "2024.05.28"]
[Round "8"]
[White "Statham_01"]
[Black "mostafa_sakha"]
[Result "1-0"]
[WhiteElo "2706"]
[BlackElo "2387"]
[TimeControl "180+1"]
[EndTime "15:29:44 PDT"]
[Termination "Statham_01 won on time"]

1. e4 {[%clk 0:03:00.9]} 1... e5 {[%clk 0:02:59.9]} 2. Nf3 {[%clk 0:03:00.8]}
2... Nc6 {[%clk 0:03:00.2]} 3. c3 {[%clk 0:03:00.8]} 3... Nf6 {[%clk 0:02:58.8]}
4. d4 {[%clk 0:03:00.4]} 4... d5 {[%clk 0:02:59.3]} 5. Bb5 {[%clk 0:02:57.2]}
5... exd4 {[%clk 0:02:52.6]} 6. e5 {[%clk 0:02:47.4]} 6... Ne4 {[%clk
0:02:52.4]} 7. cxd4 {[%clk 0:02:45.5]} 7... Bb4+ {[%clk 0:02:51.7]} 8. Nbd2
{[%clk 0:02:44.8]} 8... Nxd2 {[%clk 0:02:50.5]} 9. Bxd2 {[%clk 0:02:44.5]} 9...
Bxd2+ {[%clk 0:02:50.4]} 10. Qxd2 {[%clk 0:02:44.3]} 10... Bd7 {[%clk
0:02:49.9]} 11. O-O {[%clk 0:02:41.5]} 11... Ne7 {[%clk 0:02:44.5]} 12. Bd3
{[%clk 0:02:31.9]} 12... h6 {[%clk 0:02:44.1]} 13. Rac1 {[%clk 0:02:27.4]} 13...
c6 {[%clk 0:02:43.5]} 14. Rce1 {[%clk 0:02:15.2]} 14... Qb6 {[%clk 0:02:30.7]}
15. h3 {[%clk 0:02:02.7]} 15... a5 {[%clk 0:02:29.5]} 16. b3 {[%clk 0:02:00.6]}
16... Be6 {[%clk 0:02:18.2]} 17. Bc2 {[%clk 0:01:37.4]} 17... g5 {[%clk
0:02:17.4]} 18. Nh2 {[%clk 0:01:29.3]} 18... Qb4 {[%clk 0:02:09.6]} 19. Qe3
{[%clk 0:01:23.3]} 19... Bf5 {[%clk 0:02:04.8]} 20. Bxf5 {[%clk 0:01:11.7]}
20... Nxf5 {[%clk 0:02:04.1]} 21. Qf3 {[%clk 0:01:12.4]} 21... Nxd4 {[%clk
0:01:49.6]} 22. Qf6 {[%clk 0:01:10.4]} 22... Kd7 {[%clk 0:01:45.1]} 23. Qxf7+
{[%clk 0:00:59]} 23... Qe7 {[%clk 0:01:44.5]} 24. e6+ {[%clk 0:00:46.3]} 24...
Nxe6 {[%clk 0:01:37.9]} 25. Qg6 {[%clk 0:00:42.1]} 25... Raf8 {[%clk 0:01:21.5]}
26. Ng4 {[%clk 0:00:38.6]} 26... h5 {[%clk 0:00:55.3]} 27. Ne5+ {[%clk
0:00:38.3]} 27... Kc7 {[%clk 0:00:51.8]} 28. Nxc6 {[%clk 0:00:32.1]} 28... Qf6
{[%clk 0:00:38.2]} 29. Ne7 {[%clk 0:00:14.1]} 29... Qxe7 {[%clk 0:00:22.6]} 30.
Rxe6 {[%clk 0:00:13.7]} 30... Qc5 {[%clk 0:00:19.1]} 31. Qxg5 {[%clk 0:00:10.8]}
31... Kb8 {[%clk 0:00:18.8]} 32. Qe5+ {[%clk 0:00:08.3]} 32... Ka7 {[%clk
0:00:17.9]} 33. Rd6 {[%clk 0:00:05.8]} 33... Rhg8 {[%clk 0:00:12.6]} 34. Qxd5
{[%clk 0:00:05.2]} 34... Qc3 {[%clk 0:00:08]} 35. Qd4+ {[%clk 0:00:05]} 35...
Qxd4 {[%clk 0:00:07.8]} 36. Rxd4 {[%clk 0:00:05.9]} 36... Rf3 {[%clk 0:00:07.6]}
37. Kh2 {[%clk 0:00:04.8]} 37... Rc3 {[%clk 0:00:07.5]} 38. Rd5 {[%clk
0:00:04.9]} 38... b6 {[%clk 0:00:04.2]} 39. Rxh5 {[%clk 0:00:04.8]} 39... Rc2
{[%clk 0:00:04.6]} 40. Rh7+ {[%clk 0:00:03.4]} 40... Ka6 {[%clk 0:00:04.2]} 41.
a4 {[%clk 0:00:03.9]} 41... Rc3 {[%clk 0:00:03.9]} 42. Rd1 {[%clk 0:00:03.7]}
42... Rxb3 {[%clk 0:00:03.6]} 43. Rdd7 {[%clk 0:00:04.3]} 43... Ra8 {[%clk
0:00:03.5]} 44. Rd6 {[%clk 0:00:04.1]} 44... Rb4 {[%clk 0:00:03.4]} 45. Rhh6
{[%clk 0:00:04.6]} 45... Rb8 {[%clk 0:00:03.3]} 46. g4 {[%clk 0:00:03.9]} 46...
Rxa4 {[%clk 0:00:03.7]} 47. g5 {[%clk 0:00:04.6]} 47... Ra2 {[%clk 0:00:03.8]}
48. Rhf6 {[%clk 0:00:03.8]} 48... a4 {[%clk 0:00:02.7]} 49. g6 {[%clk
0:00:04.4]} 49... Rb2 {[%clk 0:00:02.7]} 50. g7 {[%clk 0:00:04.4]} 50... Rg8
{[%clk 0:00:03.3]} 51. Rf7 {[%clk 0:00:03.4]} 51... a3 {[%clk 0:00:03.3]} 52.
Rdd7 {[%clk 0:00:03.7]} 52... a2 {[%clk 0:00:03.5]} 53. Ra7+ {[%clk 0:00:04]}
53... Kb5 {[%clk 0:00:04]} 54. Kg3 {[%clk 0:00:04.9]} 54... Kb4 {[%clk
0:00:02.3]} 55. f4 {[%clk 0:00:04.2]} 55... Kb3 {[%clk 0:00:02.1]} 56. Rfb7
{[%clk 0:00:03.8]} 56... Kc2 {[%clk 0:00:01.6]} 57. f5 {[%clk 0:00:04]} 1-0